bitfinex/quotes_ETHUSD_20220227
["timestamp","ask_amount","ask_price","bid_price","bid_amount"]
[1645999712438,0.81442971,2613.5,2612.9,0.95704]
[1645999712637,0.80002971,2613.5,2612.9,0.95704]
[1645999713237,0.50002971,2613.5,2613.2,1.91371]
[1645999713440,2.971e-05,2613.5,2613.2,1.91371]
[1645999713841,2.971e-05,2613.5,2613.3,0.95684]
[1645999714141,2.971e-05,2613.5,2613.2,1.91371]
[1645999717196,0.7799301,2613.7,2613.2,1.91371]
[1645999719137,0.7799301,2613.7,2613.3,0.984]
[1645999722197,0.7799301,2613.7,2613.3,1.03942429]
[1645999725938,0.7799301,2613.7,2613.4,0.95685]
[1645999726540,3.2842,2614.4,2613.4,21.45685]
[1645999726744,3.0342,2614.4,2613.7,1.91331]
[1645999726943,13.569325,2614.6,2614.0,0.984]
[1645999727144,1.83730595,2614.6,2614.0,0.984]
[1645999727348,0.5,2614.5,2614.0,0.984]
[1645999727745,0.5,2614.5,2613.8,2.3649403]
[1645999728445,0.5,2614.5,2613.8,0.95662]
[1645999729046,0.8,2614.5,2613.8,0.95662]
[1645999729799,12.53,2614.5,2613.7,1.91331]
[1645999730002,0.5,2614.2,2613.7,1.91331]
[1645999730400,0.8,2614.2,2613.7,1.91331]
[1645999731299,1.2811948,2614.1,2613.7,1.91331]
[1645999732102,13.0111948,2614.1,2613.7,1.91331]
[1645999732300,1.2811948,2614.1,2613.7,1.91331]
[1645999732699,1.2811948,2614.1,2614.0,0.0584336]
[1645999732902,0.0626997,2613.9,2613.7,1.91331]
[1645999734049,1.32660244,2613.6,2613.3,0.95689]
[1645999734247,1.62660244,2613.6,2613.3,0.95689]
[1645999734651,13.35660244,2613.6,2612.5,0.54793696]
[1645999734947,13.35660244,2613.6,2612.4,3.82699]
[1645999734948,1.29041386,2613.0,2612.4,3.82699]
[1645999735447,1.59041386,2613.0,2612.4,3.82699]
[1645999736251,1.59041386,2613.0,2612.9,0.95705]
[1645999737094,0.3,2613.0,2612.9,0.95705]
[1645999737293,12.1128,2613.5,2612.9,1.109995]
[1645999737294,12.03,2613.5,2612.9,1.109995]
[1645999737494,13.33014363,2613.4,2612.9,1.109995]
[1645999737698,12.03,2613.4,2612.9,1.109995]
[1645999738896,12.03,2613.4,2612.9,0.95705]
[1645999738897,1.26334158,2613.3,2612.9,0.95705]
[1645999739998,11.73,2613.5,2612.9,0.95705]
[1645999740203,0.25,2613.6,2612.9,0.95705]
[1645999740400,0.153,2613.8,2612.9,0.95705]
[1645999740642,0.0626997,2613.9,2613.6,0.9684]
[1645999740839,0.0626997,2613.9,2613.4,0.95684]
[1645999741039,0.0626997,2613.9,2613.4,1.92484]
[1645999741445,0.0626997,2613.9,2613.4,0.95684]
[1645999741845,0.0626997,2613.9,2613.4,1.92484]
[1645999742047,0.0626997,2613.9,2613.8,0.968]
[1645999742246,0.0626997,2613.9,2613.8,1.25263433]
[1645999742648,0.5,2614.2,2613.8,1.25263433]
[1645999743046,0.5,2614.2,2613.8,3.54843433]
[1645999743249,0.00201905,2614.8,2614.0,0.3828]
[1645999743746,0.00201905,2614.8,2614.2,1.0]
[1645999744047,1.59943112,2614.9,2614.2,1.0]
[1645999744246,1.60145017,2614.9,2614.2,1.0]
[1645999744488,1.90145017,2614.9,2614.2,1.0]
[1645999744690,1.89943112,2614.9,2614.2,1.0]
[1645999745293,1.59943112,2614.8,2614.2,1.95639]
[1645999745498,1.59943112,2614.8,2614.4,1.10056913]
[1645999745691,0.5,2614.6,2614.5,1.3828]
[1645999745891,1.59943112,2614.8,2614.5,1.3828]
[1645999745892,0.3,2614.8,2614.5,1.3828]
[1645999746090,0.00201905,2615.2,2614.5,1.3828]
[1645999746291,0.00201905,2615.3,2614.5,1.3828]
[1645999746691,0.00201905,2615.3,2614.3,0.9348]
[1645999747497,1.60130883,2615.3,2614.3,1.9348]
[1645999748538,2.3111833,2615.3,2614.3,1.9348]
[1645999748737,0.5,2614.6,2614.4,1.18776657]
[1645999749138,0.8,2614.6,2614.4,1.18776657]
[1645999750240,0.3,2614.6,2614.4,1.18776657]
[1645999750839,0.00201905,2615.4,2614.4,1.18776657]
[1645999751041,1.60130422,2615.4,2614.4,1.18776657]
[1645999752094,1.90130422,2615.4,2614.4,1.18776657]
[1645999752295,1.59928517,2615.3,2614.4,1.18776657]
[1645999752698,1.59928517,2615.3,2614.8,1.0]
[1645999753098,1.59928517,2615.3,2615.0,1.18987182]
[1645999753302,1.59928517,2615.2,2614.9,1.0]
[1645999753598,1.59928517,2615.1,2614.6,1.50824]
[1645999753898,1.60130422,2615.4,2614.6,1.50823]
[1645999754100,1.59913487,2615.3,2614.7,3.8828]
[1645999754301,0.01980077,2615.6,2614.7,0.3828]
[1645999754500,0.01980077,2615.6,2614.7,0.552]
[1645999754501,1.59899831,2615.5,2614.7,0.552]
[1645999754701,0.00201905,2615.5,2614.7,0.552]
[1645999755000,0.01980077,2615.6,2614.7,0.552]
[1645999755199,0.01980077,2615.6,2614.8,1.0]
[1645999755500,0.01980077,2615.6,2614.7,0.552]
[1645999755759,0.01980077,2615.6,2615.0,1.0]
[1645999756157,0.01980077,2615.6,2614.8,2.27082281]
[1645999756761,0.01980077,2615.6,2614.8,1.95613]
[1645999757765,0.65461982,2615.9,2614.9,1.0]
[1645999757964,1.5989323,2615.8,2615.1,1.0]
[1645999758166,0.25,2616.1,2615.1,1.0]
[1645999758364,1.59888784,2616.0,2615.0,1.91211]
[1645999758569,1.59888784,2616.0,2615.2,3.8828]
[1645999758764,3.1008,2616.4,2615.6,1.0]
[1645999758962,1.59873182,2616.3,2615.6,1.0]
[1645999759592,1.89873182,2616.3,2615.6,1.0]
[1645999759793,1.59873182,2616.2,2615.6,1.0]
[1645999760597,1.59873182,2616.2,2615.4,0.95592]
[1645999760792,1.59873182,2616.2,2615.5,0.152777]
[1645999761197,1.59873182,2616.2,2615.2,1.50787]
[1645999761393,1.59873182,2616.2,2615.4,1.0408231]
[1645999761595,0.00201289,2616.2,2615.4,1.0408231]
[1645999761794,1.59875901,2616.3,2615.3,1.0]
[1645999761997,0.5,2616.1,2615.3,1.0]
[1645999762598,0.46,2616.1,2615.3,1.956]
[1645999762798,0.00201289,2616.2,2615.5,1.06161716]
[1645999762997,0.05,2616.4,2615.6,1.0]
[1645999762998,1.59916972,2616.3,2615.6,1.0]
[1645999763243,0.00201289,2616.3,2615.9,1.0]
[1645999763447,0.05,2616.4,2616.0,0.552]
[1645999763644,0.0037702,2616.8,2616.1,10.0]
[1645999763645,0.00201289,2616.6,2616.1,10.0]
[1645999763947,1.59897124,2616.6,2616.2,0.552]
[1645999764147,3.5018563,2616.7,2616.5,1.07787893]
[1645999764343,3.5018563,2616.7,2616.6,1.0]
[1645999764747,0.25201289,2617.0,2616.3,10.0]
[1645999764946,0.0075404,2616.8,2616.3,11.552]
[1645999765546,0.0075404,2616.8,2616.4,1.21006116]
[1645999765746,0.0075404,2616.8,2616.4,1.59286116]
[1645999765949,0.0150808,2616.8,2616.7,1.0]
[1645999766147,8.08e-05,2616.8,2616.6,0.3828]
[1645999766349,0.00201289,2617.4,2616.8,0.3828]
[1645999766554,0.00201289,2617.6,2616.8,3.8828]
[1645999766899,2.14078319,2618.1,2617.0,13.0]
[1645999767098,0.4027,2618.2,2617.0,13.0]
[1645999767298,1.42767059,2618.1,2617.1,1.0]
[1645999767497,1.37767059,2618.1,2617.1,1.0]
[1645999768298,3.5,2618.0,2617.1,1.0]
[1645999768500,3.5,2618.0,2616.8,1.91077]
[1645999768501,1.44105261,2617.2,2616.8,1.91077]
[1645999768703,2.12385261,2617.2,2616.1,10.26652]
[1645999769101,2.12385261,2617.2,2616.1,6.76652]
[1645999769498,1.09763477,2616.6,2616.1,7.76652]
[1645999769701,1.39763477,2616.6,2616.1,2.86652]
[1645999770400,13.12763477,2616.6,2616.1,2.86652]
[1645999770650,13.12763477,2616.6,2615.4,0.05251172]
[1645999770651,11.73,2616.4,2615.4,0.05251172]
[1645999770851,11.73,2616.4,2615.6,0.95605]
[1645999771050,11.73200575,2616.3,2615.6,0.95605]
[1645999771246,0.00200575,2616.3,2615.6,0.95605]
[1645999771649,1.23886366,2616.0,2615.6,0.95605]
[1645999772149,1.53886366,2616.0,2615.6,0.95605]
[1645999772449,13.26886366,2616.0,2615.6,0.95605]
[1645999773249,1.53886366,2616.0,2615.6,0.95605]
[1645999774487,0.00200575,2616.2,2615.6,0.95605]
[1645999774687,0.00200575,2616.3,2615.6,0.95605]
[1645999774888,0.14020572,2616.5,2615.6,0.95605]
[1645999775491,1.34615232,2615.9,2615.6,0.95605]
[1645999776592,1.64615232,2615.9,2615.6,0.95605]
[1645999778244,15.6128,2615.8,2614.6,3.82369]
[1645999778448,11.73,2615.3,2614.1,3.787]
[1645999778644,11.73,2615.3,2614.0,3.8245]
[1645999778645,0.3828,2615.2,2614.0,3.8245]
[1645999778843,0.38480575,2615.2,2614.2,1.0]
[1645999779045,12.11480575,2615.2,2614.2,1.0]
[1645999779243,0.38480575,2615.2,2614.2,1.0]
[1645999779843,1.41034856,2614.7,2614.2,1.0]
[1645999780046,3.88480575,2615.2,2614.2,1.0]
[1645999780245,0.38480575,2615.2,2614.2,1.0]
[1645999781043,0.00200575,2615.2,2614.2,2.29996397]
[1645999781243,0.3,2615.0,2614.1,0.95656]
[1645999781442,0.3,2615.0,2614.1,0.90656]
[1645999781643,0.00200575,2615.3,2614.1,1.90656]
[1645999781888,0.552,2615.6,2614.1,1.90656]
[1645999781889,11.73200575,2615.5,2614.1,1.90656]
[1645999782097,0.3828,2615.2,2614.1,1.90656]
[1645999782296,1.39632603,2614.7,2614.1,0.90656]
[1645999782495,1.39632603,2614.7,2613.7,0.95668]
[1645999782496,15.23,2614.6,2613.7,0.95668]
[1645999782695,11.73,2614.6,2613.8,1.0]
[1645999783494,0.3,2614.7,2613.8,1.0]
[1645999783694,0.453,2614.9,2613.8,1.0]
[1645999783894,11.883,2614.9,2613.8,1.0]
[1645999784296,12.2658,2614.9,2613.8,1.0]
[1645999784494,1.37812022,2614.4,2613.8,1.0]
[1645999785095,1.67812022,2614.4,2613.8,1.0]
[1645999785495,1.67812022,2614.4,2613.8,0.09344]
[1645999787444,1.37812022,2614.4,2613.8,0.09344]
[1645999788648,0.153,2614.8,2613.9,0.05723618]
[1645999788847,0.15500575,2615.1,2614.1,0.95652]
[1645999789048,0.00200575,2615.1,2614.1,0.95652]
[1645999789248,0.00200575,2615.2,2614.4,0.0928]
[1645999789499,0.25200575,2615.3,2614.1,1.33932]
[1645999789695,1.63802346,2615.3,2614.3,1.40539144]
[1645999789907,1.63802346,2615.3,2614.5,1.04758]
[1645999789908,0.25200575,2615.3,2614.5,1.04758]
[1645999790100,0.25200575,2615.3,2614.5,1.43038]
[1645999790101,0.00200575,2615.3,2614.5,1.43038]
[1645999790300,1.59049007,2615.7,2614.5,1.43038]
[1645999790502,1.59049007,2615.7,2614.5,1.33918]
[1645999790701,1.59049007,2615.7,2614.6,0.0912]
[1645999790902,1.3618425,2615.3,2614.6,0.0912]
[1645999791101,1.66384825,2615.3,2614.6,0.0912]
[1645999792302,1.01264568,2614.8,2614.6,0.0912]
[1645999792506,1.31264568,2614.8,2614.6,0.0912]
[1645999793546,0.3,2614.8,2614.6,0.0912]
[1645999793743,0.1529,2615.2,2614.6,0.0912]
[1645999793945,0.1029,2615.2,2614.6,0.0912]
[1645999794647,0.15490575,2615.3,2614.6,0.0912]
[1645999795948,1.38312064,2614.9,2614.6,0.0912]
[1645999796349,1.68312064,2614.9,2614.6,0.0912]
[1645999797000,0.3,2614.9,2614.6,0.0912]
[1645999797196,0.00200575,2615.3,2614.6,0.0912]
[1645999797396,0.3,2615.3,2614.6,0.0912]
[1645999797596,0.00200575,2615.3,2614.6,0.0912]
[1645999797802,1.59142443,2615.3,2614.6,0.0912]
[1645999797999,13.32142443,2615.3,2614.6,0.0912]
[1645999798200,11.73200575,2615.3,2614.6,0.0912]
[1645999798399,0.00200575,2615.3,2614.6,0.0912]
[1645999798599,0.00200575,2615.3,2614.8,0.05748827]
[1645999798799,0.00200575,2615.6,2614.8,0.05748827]
[1645999798998,1.5895817,2615.7,2614.8,0.05748827]
[1645999798999,0.00200575,2615.7,2614.8,0.05748827]
[1645999799198,1.59158745,2615.8,2614.8,0.05748827]
[1645999799398,1.10135863,2615.1,2614.8,0.05748827]
[1645999800304,0.15490575,2615.5,2614.8,0.05748827]
[1645999800646,11.73,2615.3,2614.8,0.05748827]
[1645999801445,11.73,2615.2,2614.8,0.05748827]
[1645999801745,13.20994388,2615.1,2614.8,0.05748827]
[1645999804399,0.3,2615.1,2614.8,0.05748827]
[1645999804599,0.00200575,2615.8,2614.8,1.01377827]
[1645999804799,1.59089043,2615.8,2614.8,1.01377827]
[1645999805000,1.89089043,2615.8,2614.8,1.01377827]
[1645999805218,1.58888468,2615.7,2614.8,1.01377827]
[1645999805400,1.30480876,2615.4,2614.8,0.05748827]
[1645999805799,1.60480876,2615.4,2614.8,0.05748827]
[1645999806006,11.73,2615.3,2614.8,0.05748827]
[1645999806405,1.60480876,2615.4,2614.8,0.05748827]
[1645999808150,1.55480876,2615.4,2614.8,0.05748827]
[1645999809451,1.32471345,2615.0,2614.8,0.05748827]
[1645999809652,0.00200575,2615.4,2614.8,0.05748827]
[1645999809847,0.00200575,2615.6,2614.8,0.05748827]
[1645999810053,0.00200575,2615.7,2615.4,1.32107406]
[1645999810251,0.38509541,2615.3,2614.8,0.05748827]
[1645999810451,11.73,2615.2,2614.8,0.05748827]
[1645999810850,0.68509541,2615.3,2614.8,0.05748827]
[1645999811052,12.41509541,2615.3,2614.8,0.05748827]
[1645999811650,13.1226098,2615.2,2614.8,0.05748827]
[1645999811892,1.3926098,2615.2,2614.8,0.05748827]
[1645999813304,13.1226098,2615.2,2614.8,0.05748827]
[1645999813500,13.30026938,2615.1,2614.8,0.05748827]
[1645999813701,1.57207237,2615.0,2614.8,0.05748827]
[1645999814106,11.73,2614.9,2614.8,0.05748827]
[1645999814304,0.74031264,2615.2,2614.8,0.05748827]
[1645999814502,1.57209593,2615.1,2614.8,0.05748827]
[1645999815101,13.30209593,2615.1,2614.8,0.05748827]
[1645999815301,11.72,2614.9,2614.8,0.05748827]
[1645999815500,13.29209593,2614.9,2614.8,0.05748827]
[1645999816151,1.87209593,2614.9,2614.8,0.05748827]
[1645999816749,1.87449034,2614.9,2614.8,0.13747748]
[1645999817350,13.60449034,2614.9,2614.8,0.13747748]
[1645999817549,1.87449034,2614.9,2614.8,0.13747748]
[1645999817952,1.87449034,2614.9,2614.8,0.05748827]
[1645999818560,13.60449034,2614.9,2614.8,0.05748827]
[1645999818753,1.87449034,2614.9,2614.8,0.05748827]
[1645999819155,1.87449034,2614.9,2614.0,0.70281427]
[1645999819404,11.73,2614.7,2614.1,0.08000071]
[1645999819601,11.73,2614.5,2614.2,0.08000071]
[1645999819801,13.30449034,2614.4,2613.6,0.0912]
[1645999819999,1.57449034,2614.3,2613.7,0.08000913]
[1645999820199,1.57449034,2614.2,2613.7,0.08000913]
[1645999820402,1.57449034,2614.2,2613.7,0.17120913]
[1645999820601,1.57449034,2614.2,2613.8,0.08000913]
[1645999820802,0.3,2614.0,2613.8,0.08000913]
[1645999821001,0.403,2614.7,2613.8,0.08000913]
[1645999821206,1.576311,2614.6,2613.9,0.08000913]
[1645999821404,1.576311,2614.6,2614.2,0.0912]
[1645999821604,1.576311,2614.5,2614.3,0.08000913]
[1645999821801,1.576311,2614.4,2614.3,0.08000913]
[1645999822007,1.576311,2614.4,2613.9,0.08000913]
[1645999822207,2.73490596,2614.3,2613.9,0.08000913]
[1645999822408,1.576311,2614.2,2613.9,0.08000913]
[1645999822609,1.576311,2614.2,2613.4,0.95678]
[1645999822610,11.73,2614.1,2613.4,0.70281427]
[1645999822807,12.03,2614.1,2613.2,0.70281427]
[1645999823008,12.03,2614.1,2613.6,0.152898]
[1645999823446,0.3,2614.1,2613.6,0.152898]
[1645999823851,0.3,2614.1,2613.2,0.0912]
[1645999824352,0.153,2614.2,2614.0,0.06086043]
[1645999824751,13.21251071,2614.2,2614.0,0.06086043]
[1645999825154,1.48251071,2614.2,2614.0,0.06086043]
[1645999825355,1.32951071,2614.2,2614.0,0.06086043]
[1645999826359,13.05951071,2614.2,2614.0,0.06086043]
[1645999826654,13.35951071,2614.2,2614.0,0.06086043]
[1645999826899,13.35951071,2614.2,2614.0,0.21374743]
[1645999827404,13.35951071,2614.2,2614.0,0.06086043]
[1645999827604,1.62951071,2614.2,2614.0,0.06086043]
[1645999829605,11.42655907,2614.4,2614.0,0.06086043]
[1645999830005,11.80935907,2614.4,2613.3,0.2442]
[1645999830207,1.31117096,2614.3,2613.3,0.2442]
[1645999830407,12.73773003,2614.3,2613.3,0.2442]
[1645999830846,13.12053003,2614.3,2613.3,0.2442]
[1645999831047,13.12053003,2614.3,2613.3,0.153]
[1645999831250,13.42053003,2614.3,2613.3,0.153]
[1645999832451,0.3,2614.3,2613.3,0.153]
[1645999832652,0.25,2614.6,2613.4,0.3828]
[1645999832853,0.25,2614.6,2614.1,0.0912]
[1645999833054,0.25,2614.6,2613.6,0.95672]
[1645999833055,3.0758,2615.1,2613.8,0.3828]
[1645999833253,3.0758,2615.1,2613.5,0.70281427]
[1645999833254,3.5,2615.0,2613.5,0.70281427]
[1645999833452,0.552,2615.0,2613.4,9.56091427]
[1645999833653,1.06528875,2614.4,2613.5,0.153]
[1645999833953,1.06528875,2614.4,2613.5,0.85581427]
[1645999834157,1.06528875,2614.4,2613.5,0.153]
[1645999834397,1.06528875,2614.4,2613.6,1.91335]
[1645999834798,12.03,2614.7,2613.7,0.153]
[1645999834999,12.03,2614.7,2613.7,0.2442]
[1645999835000,0.3,2614.7,2613.7,0.2442]
[1645999835197,12.0628,2614.8,2613.7,0.2442]
[1645999835397,11.73,2614.8,2613.9,0.0912]
[1645999835799,13.09887101,2614.6,2613.8,1.09409757]
[1645999835997,13.09887101,2614.6,2613.9,0.153]
[1645999836197,13.09887101,2614.6,2613.7,0.153]
[1645999836400,13.39887101,2614.6,2613.7,0.153]
[1645999836803,13.39887101,2614.6,2613.7,0.2442]
[1645999837001,13.39887101,2614.6,2613.7,1.6214319]
[1645999837203,12.03,2614.6,2613.7,1.5302319]
[1645999837405,0.3,2614.6,2614.0,0.0912]
[1645999837603,0.3828,2614.8,2613.7,1.5302319]
[1645999837604,0.3,2614.8,2613.7,1.5302319]
[1645999837803,12.4128,2614.9,2613.7,1.5302319]
[1645999838003,12.03,2614.9,2614.0,0.0912]
[1645999838254,11.73,2614.7,2614.1,1.43668478]
[1645999838454,11.73,2614.7,2614.1,0.0912]
[1645999838654,12.03,2614.7,2613.8,0.95667]
[1645999839254,0.3,2614.7,2613.8,0.95667]
[1645999839657,1.02650851,2614.5,2613.8,0.95667]
[1645999839854,11.73,2614.9,2613.8,0.95667]
[1645999840256,11.73,2614.9,2613.8,1.04787]
[1645999840458,11.73,2614.9,2613.7,3.39454714]
[1645999840459,11.73,2614.8,2613.7,1.3492]
[1645999840658,11.73,2614.8,2614.0,0.06301773]
[1645999841057,11.73,2614.6,2614.0,0.06301773]
[1645999841258,12.03,2614.6,2614.0,0.06301773]
[1645999841460,11.73,2614.4,2614.0,0.06301773]
[1645999841901,12.03,2614.4,2614.0,0.06301773]
[1645999842504,13.30376358,2614.3,2614.0,0.21587573]
[1645999842906,13.30376358,2614.2,2614.0,0.06301773]
[1645999843105,1.57373385,2614.1,2614.0,0.06301773]
[1645999843306,1.57373385,2614.3,2614.0,0.06301773]
[1645999844106,11.73,2614.1,2614.0,0.06301773]
[1645999844313,0.06181418,2613.8,2613.2,0.95691]
[1645999844507,0.06181418,2613.8,2613.3,0.08000001]
[1645999845309,12.91927196,2613.7,2613.3,0.08000001]
[1645999845747,13.21927196,2613.7,2613.4,0.08000001]
[1645999845947,13.21927196,2613.7,2613.5,0.08000001]
[1645999846148,13.21927196,2613.7,2612.9,0.00096]
[1645999846347,1.37257281,2613.3,2612.9,0.08096803]
[1645999846549,1.37257281,2613.3,2612.9,0.08000803]
[1645999846753,1.67257281,2613.3,2612.9,0.08000803]
[1645999847154,12.03,2613.3,2612.9,0.08000803]
[1645999847361,11.73,2613.1,2612.7,0.00096]
[1645999847555,4.1828,2613.5,2612.5,0.00096]
[1645999847556,0.3,2613.2,2612.5,0.00096]
[1645999847857,3.653,2613.4,2612.5,0.00096]
[1645999848257,1.05631896,2612.6,2612.3,0.00096]
[1645999848456,1.05631896,2612.6,2612.1,1.91445]
[1645999848457,1.35631896,2612.6,2612.1,1.91445]
[1645999848657,0.3,2612.6,2612.1,1.91445]
[1645999848856,0.3,2612.6,2612.1,2.84366504]
[1645999849056,0.3,2612.8,2612.1,2.84366504]
[1645999849257,3.5,2613.3,2612.2,0.00096]
[1645999849496,11.73,2613.2,2612.2,0.00096]
[1645999849697,1.44084047,2612.6,2612.2,0.00096]
[1645999849910,1.44084047,2612.6,2612.1,1.91445]
[1645999850103,1.74084047,2612.6,2612.1,1.91445]
[1645999850698,0.3,2612.6,2612.1,1.91445]
[1645999851099,0.3,2612.9,2612.1,1.91445]
[1645999851301,0.3,2612.9,2612.1,1.91541]
[1645999851502,15.53,2613.2,2612.1,1.91541]
[1645999851700,12.03,2613.2,2612.2,0.00096]
[1645999852103,0.3828,2613.1,2612.2,0.00096]
[1645999852305,0.3,2612.3,2612.2,0.00096]
[1645999852610,11.98,2613.0,2612.1,1.91445]
[1645999852803,11.98,2613.0,2612.2,0.00096]
[1645999853149,11.68,2612.8,2612.0,0.00096]
[1645999853349,1.25334136,2612.2,2612.0,0.00096]
[1645999853552,1.25334136,2612.2,2611.9,0.92921504]
[1645999853751,1.55334136,2612.2,2611.9,0.92921504]
[1645999853950,1.55334136,2612.2,2612.1,0.0912]
[1645999854351,1.55334136,2612.2,2611.9,0.92921504]
[1645999854650,1.55334136,2612.2,2611.8,0.92921504]
[1645999856252,13.23334136,2612.2,2611.8,0.92921504]
[1645999856451,1.55334136,2612.2,2611.8,0.92921504]
[1645999857104,0.3,2612.2,2611.8,0.92921504]
[1645999857303,0.0339301,2612.5,2611.8,0.92921504]
[1645999857503,0.0339301,2612.5,2611.8,0.93017504]
[1645999857700,0.0339301,2612.5,2611.9,0.92921504]
[1645999857905,0.0339301,2612.5,2611.8,0.93017504]
[1645999858303,1.18230961,2612.0,2611.8,0.93017504]
[1645999858500,0.91075667,2612.0,2611.8,0.92921504]
[1645999859301,0.91075667,2612.0,2611.7,1.88667504]
[1645999859501,0.91075667,2612.0,2611.5,0.87921504]
[1645999859701,0.91075667,2612.0,2611.4,0.09216]
[1645999860104,12.64075667,2612.0,2611.4,0.00096]
[1645999860657,1.4436486,2611.6,2611.2,0.00096]
[1645999860859,0.3,2611.6,2611.1,1.39193522]
[1645999861058,0.3,2611.6,2611.0,1.39193522]
[1645999861258,12.03,2612.0,2611.1,1.39193522]
[1645999861565,12.03,2612.0,2611.2,0.00096]
[1645999862361,0.3,2612.0,2611.2,0.00096]
[1645999862562,0.03404746,2612.1,2611.2,0.95765]
[1645999862763,0.03404746,2612.1,2611.1,0.00096]
[1645999862966,1.24841405,2611.4,2611.1,0.00096]
[1645999863161,0.3,2611.4,2610.9,1.39193522]
[1645999863663,0.03404746,2612.1,2610.9,1.39193522]
[1645999863861,0.03404746,2612.1,2611.0,1.39289522]
[1645999864062,0.03404746,2612.1,2610.9,1.39193522]
[1645999864263,0.03404746,2612.1,2611.2,1.01236254]
[1645999864499,0.03404746,2612.1,2611.3,0.0912]
[1645999864700,0.03404746,2612.1,2611.3,0.09216]
[1645999865104,0.03404746,2612.1,2611.3,0.00096]
[1645999865903,0.03573281,2611.5,2611.3,0.0539251]
[1645999866104,0.03573281,2611.5,2611.3,0.0529651]
[1645999866304,0.33573281,2611.5,2611.3,0.0529651]
[1645999868372,1.52729518,2611.5,2611.3,0.0529651]
[1645999868771,0.33573281,2611.5,2611.3,0.0529651]
[1645999869773,1.14026944,2611.4,2611.3,0.0529651]
[1645999870173,0.33573281,2611.5,2611.3,0.0529651]
[1645999870377,0.03573281,2611.5,2611.3,0.0529651]
[1645999870974,11.75856178,2612.1,2611.3,0.0529651]
[1645999871175,12.86841255,2611.8,2611.3,0.0529651]
[1645999871774,13.16841255,2611.8,2611.3,0.0529651]
[1645999872403,1.43841255,2611.8,2611.3,0.0529651]
[1645999872604,13.16841255,2611.8,2611.3,0.0529651]
[1645999873410,1.43841255,2611.8,2611.3,0.0529651]
[1645999873606,13.16841255,2611.8,2611.3,0.0529651]
[1645999876755,13.16841255,2611.8,2610.7,0.00096]
[1645999876756,11.73,2611.6,2610.7,0.00096]
[1645999876958,9.4348,2611.7,2610.7,0.00096]
[1645999876959,11.73,2611.4,2610.7,0.00096]
[1645999877159,11.73,2611.2,2610.4,0.00096]
[1645999877355,11.73,2611.2,2610.2,0.00096]
[1645999877557,15.3832,2611.2,2610.2,0.00096]
[1645999877758,12.566,2611.2,2610.2,0.00096]
[1645999877958,12.4128,2611.2,2610.2,0.00096]
[1645999878156,0.1532,2611.1,2610.2,0.00096]
[1645999878457,0.1532,2611.1,2610.0,0.00096]
[1645999880003,11.73,2610.6,2610.0,0.00096]
[1645999880203,12.03,2610.6,2610.0,0.00096]
[1645999880404,12.03,2610.6,2609.8,0.00096]
[1645999880604,12.03,2610.6,2609.6,0.00096]
[1645999881002,1.34004023,2610.1,2609.6,0.00096]
[1645999881208,1.34004023,2610.1,2609.5,0.3828]
[1645999881209,1.64004023,2610.1,2609.5,0.3828]
[1645999881403,0.3,2610.1,2609.5,0.3828]
[1645999881604,1.4032,2611.2,2610.7,0.0912]
[1645999881809,1.4032,2611.2,2609.7,0.95804]
[1645999881810,0.1532,2611.2,2610.0,0.01235887]
[1645999882009,3.2483,2611.5,2610.5,0.0912]
[1645999882409,3.2483,2611.5,2610.2,0.3828]
[1645999882410,1.40065968,2611.7,2611.0,1.13811132]
[1645999882609,1.40065968,2611.7,2610.4,0.3828]
[1645999882807,0.25,2611.8,2610.5,0.00096]
[1645999883010,0.25,2611.8,2610.5,1.13880108]
[1645999883257,0.25,2611.8,2610.6,4.43576]
[1645999883457,0.25,2611.8,2610.7,0.00096]
[1645999883658,0.25,2611.8,2610.8,0.3828]
[1645999883870,0.25,2611.8,2611.2,1.79948706]
[1645999884163,1.14728723,2612.0,2611.2,0.3828]
[1645999884358,1.44728723,2612.0,2611.2,0.38376]
[1645999884558,0.3,2612.0,2611.2,0.38376]
[1645999884765,1.3,2612.1,2611.2,0.38376]
[1645999885564,1.3,2612.1,2611.5,1.43673075]
[1645999885765,1.0,2612.1,2611.3,0.00096]
[1645999886169,1.0,2612.1,2611.1,0.38376]
[1645999886369,1.0,2612.1,2611.2,0.00096]
[1645999887008,1.3,2612.1,2611.2,0.00096]
[1645999887208,1.3,2612.1,2611.3,1.29612063]
[1645999887512,1.3,2612.1,2611.3,1.29708063]
[1645999890214,2.71270703,2612.1,2611.3,1.29708063]
[1645999890413,1.3,2612.1,2611.3,1.29708063]
[1645999890652,0.02320638,2612.0,2611.3,1.29708063]
[1645999891356,0.02320638,2612.0,2611.3,1.67988063]
[1645999891560,0.02320638,2612.0,2611.8,1.40631054]
[1645999891958,0.02320638,2612.0,2611.3,0.38376]
[1645999892361,0.02320638,2612.0,2611.3,0.00096]
[1645999893258,0.02320638,2612.0,2611.5,1.30369925]
[1645999895009,0.02320638,2612.0,2611.3,0.00096]
[1645999897915,0.02320638,2612.0,2611.4,0.1531]
[1645999898352,0.02320638,2612.0,2611.5,1.24392689]
[1645999899355,0.02225594,2612.0,2611.5,1.24392689]
[1645999899953,0.02225594,2612.0,2611.6,0.1531]
[1645999901352,0.02225594,2612.0,2611.5,1.24392689]
[1645999901552,0.02225594,2612.0,2611.4,0.05569076]
[1645999903504,0.02225594,2612.0,2611.6,1.29086995]
[1645999904103,0.02225594,2612.0,2611.4,0.00569076]
[1645999904305,0.02225594,2612.0,2611.4,0.00445655]
[1645999904709,0.02225594,2612.0,2611.4,0.15744655]
[1645999905005,0.02225594,2612.0,2611.4,0.15755655]
[1645999905206,0.02225594,2612.0,2611.5,1.13670728]
[1645999905855,0.02225594,2612.0,2611.7,0.05412809]
[1645999906255,0.3,2612.0,2611.7,0.05412809]
[1645999906455,0.81164578,2612.1,2611.7,0.05412809]
[1645999906657,0.1531,2612.6,2611.9,3.9]
[1645999906859,9.6061,2613.1,2612.0,3.5]